bitfinex/quotes_ETHUSD_20230118
["timestamp","ask_amount","ask_price","bid_price","bid_amount"]
[1674049713441,3.11662407,1595.8,1595.2,0.4203]
[1674049713609,6.11662407,1595.7,1595.1,0.89480704]
[1674049713778,3.11662407,1595.6,1595.1,0.84280704]
[1674049713992,3.42828648,1595.5,1595.1,0.84280704]
[1674049714253,6.11662407,1595.4,1595.1,0.84280704]
[1674049714402,3.34662407,1595.3,1595.1,0.84280704]
[1674049714612,3.11662407,1595.2,1595.1,0.84280704]
[1674049714885,3.34662407,1595.2,1594.6,0.064]
[1674049715040,1.297,1595.3,1594.5,10.199]
[1674049715041,6.45128648,1595.1,1594.5,0.5346]
[1674049715407,6.45128648,1595.1,1594.4,15.8611]
[1674049715408,3.11662407,1595.0,1594.4,15.8611]
[1674049715720,3.40166241,1595.1,1594.5,1.0]
[1674049715721,0.40166241,1595.1,1594.5,1.0]
[1674049715936,3.11662407,1595.0,1594.4,15.8611]
[1674049716084,0.067,1595.2,1594.4,15.8591]
[1674049716295,0.231,1595.3,1594.5,3.11662407]
[1674049716559,0.231,1595.3,1594.6,3.11662407]
[1674049716885,0.231,1595.3,1594.8,1.0]
[1674049717040,0.231,1595.3,1594.8,4.52828648]
[1674049717250,0.231,1595.3,1594.9,0.4704]
[1674049718931,3.34762407,1595.3,1594.7,0.4705]
[1674049719380,3.34762407,1595.3,1594.5,10.3129]
[1674049719381,0.231,1595.3,1594.6,0.4705]
[1674049719649,0.231,1595.3,1594.7,3.11662407]
[1674049719801,0.231,1595.3,1594.8,4.42828648]
[1674049720222,0.231,1595.3,1594.9,3.58702407]
[1674049720433,0.231,1595.3,1595.0,3.11662407]
[1674049720687,0.231,1595.3,1595.1,1.0]
[1674049720860,0.067,1596.0,1595.2,9.76962407]
[1674049721065,1.71766241,1596.3,1595.4,3.11662407]
[1674049721276,1.62759198,1596.4,1595.5,3.11662407]
[1674049721277,0.23459198,1596.4,1595.5,3.11662407]
[1674049721484,3.23459198,1596.4,1595.4,0.066]
[1674049721750,0.23459198,1596.4,1595.6,3.11662407]
[1674049722113,0.23459198,1596.4,1595.7,3.58682407]
[1674049722323,0.23459198,1596.4,1595.7,4.04550648]
[1674049722584,0.23459198,1596.4,1595.7,0.4702]
[1674049722585,3.23459198,1596.4,1595.7,0.4702]
[1674049722777,0.23459198,1596.4,1595.6,0.4702]
[1674049723191,3.0,1596.3,1595.5,0.4703]
[1674049723533,3.0,1596.3,1595.3,16.0267]
[1674049723747,3.0,1596.3,1595.4,1.60267]
[1674049723748,0.3,1596.2,1595.4,1.60267]
[1674049723914,0.30159198,1596.4,1595.5,3.11662407]
[1674049724112,0.23459198,1596.4,1595.6,3.11662407]
[1674049724323,0.23459198,1596.4,1595.5,0.5363]
[1674049724539,3.0,1596.1,1595.4,1.4703]
[1674049724802,6.11662407,1596.1,1595.3,15.5564]
[1674049724952,3.0,1595.9,1595.3,16.0247]
[1674049725164,3.0,1595.9,1595.3,15.5544]
[1674049725405,0.67866241,1596.0,1595.4,3.11662407]
[1674049725631,2.004,1596.3,1595.4,4.11662407]
[1674049725807,3.0,1596.3,1595.4,4.11662407]
[1674049726011,0.77159198,1596.4,1595.5,0.4703]
[1674049726222,0.23459198,1596.4,1595.5,3.9703]
[1674049726437,0.23459198,1596.4,1595.5,0.4703]
[1674049726647,0.23459198,1596.4,1595.6,1.0]
[1674049726648,3.35121605,1596.4,1595.6,1.0]
[1674049726968,0.23459198,1596.4,1595.7,3.11662407]
[1674049727184,0.23459198,1596.4,1595.8,3.11662407]
[1674049727623,0.23459198,1596.4,1595.9,3.58672407]
[1674049727836,0.23459198,1596.4,1596.0,4.11662407]
[1674049727995,0.23459198,1596.4,1596.0,4.52828648]
[1674049728214,0.23459198,1596.4,1596.0,1.41166241]
[1674049728440,0.23459198,1596.4,1596.0,1.4701]
[1674049728787,0.23459198,1596.4,1596.0,1.0]
[1674049728995,0.23459198,1596.4,1596.1,0.4701]
[1674049729229,0.23459198,1596.4,1595.8,0.066]
[1674049729368,0.23459198,1596.4,1595.6,10.3451]
[1674049729577,0.43715653,1596.4,1595.7,4.15113407]
[1674049729811,0.43715653,1596.4,1595.7,0.4702]
[1674049730364,3.43715653,1596.4,1595.6,9.3451]
[1674049730526,3.0,1596.2,1595.6,9.3431]
[1674049730736,3.0,1596.2,1595.6,0.064]
[1674049730737,6.11662407,1596.2,1595.6,0.064]
[1674049730939,6.18362407,1596.2,1595.4,1.0]
[1674049731306,6.18362407,1596.2,1595.3,16.0267]
[1674049731307,3.0,1596.0,1595.3,16.0267]
[1674049731463,3.0,1596.0,1595.3,19.14132407]
[1674049731673,3.0,1596.0,1595.3,18.67102407]
[1674049731942,6.11662407,1596.0,1595.3,15.5544]
[1674049732094,6.18362407,1596.0,1595.3,15.5544]
[1674049732305,0.61836241,1595.9,1595.3,15.5544]
[1674049732514,3.73498648,1595.9,1595.3,15.5544]
[1674049732762,3.11662407,1595.8,1595.3,15.5544]
[1674049732966,3.0,1595.7,1595.3,15.5544]
[1674049733178,3.0,1595.7,1595.3,0.064]
[1674049733357,3.0,1595.7,1595.1,1.3]
[1674049733358,3.61836241,1595.7,1595.1,1.3]
[1674049733566,0.61836241,1595.7,1595.0,1.4704]
[1674049733777,0.61836241,1595.7,1595.0,4.58702407]
[1674049734375,6.11662407,1595.6,1594.9,14.0844]
[1674049734543,6.11662407,1595.6,1594.9,13.612]
[1674049734544,3.61166241,1595.5,1594.9,13.612]
[1674049734757,3.0,1595.3,1594.9,13.612]
[1674049735088,3.0,1595.3,1594.9,0.064]
[1674049735255,3.0,1595.3,1594.6,2.41307287]
[1674049735465,3.0,1595.3,1594.6,1.7705]
[1674049735466,0.3,1595.2,1594.6,1.7705]
[1674049735721,3.61166241,1595.5,1595.3,1.09420021]
[1674049736102,3.11662407,1595.4,1595.3,1.09420021]
[1674049736692,0.67766241,1595.5,1595.3,1.09420021]
[1674049736834,3.066,1595.7,1595.3,1.09420021]
[1674049737043,3.11662407,1595.6,1595.3,1.09420021]
[1674049737571,3.11662407,1595.5,1595.3,1.09420021]
[1674049737780,3.11662407,1595.4,1595.3,1.09420021]
[1674049738051,0.066,1595.6,1595.3,1.09420021]
[1674049738237,0.066,1595.7,1595.4,0.10942002]
[1674049738406,4.636,1596.0,1595.3,1.09420021]
[1674049738616,3.11662407,1595.9,1595.3,1.09420021]
[1674049738873,6.11662407,1595.8,1595.3,1.09420021]
[1674049739039,6.18262407,1595.8,1595.3,1.09420021]
[1674049739809,3.11662407,1595.7,1595.3,1.09420021]
[1674049740019,3.066,1595.8,1595.3,1.09420021]
[1674049740356,3.0,1595.9,1595.3,1.09420021]
[1674049740568,6.11662407,1595.9,1595.3,1.09420021]
[1674049740752,6.18262407,1595.9,1595.3,1.09420021]
[1674049741199,0.066,1595.9,1595.4,3.11662407]
[1674049741509,3.0,1596.1,1595.5,3.11662407]
[1674049741831,6.11662407,1596.1,1595.4,0.5363]
[1674049741979,0.066,1596.1,1595.5,3.11662407]
[1674049742194,0.30059198,1596.4,1595.6,0.31166241]
[1674049742403,0.23459198,1596.4,1595.6,1.78186241]
[1674049742720,0.23459198,1596.4,1595.7,3.11662407]
[1674049742721,3.0,1596.3,1595.7,3.11662407]
[1674049743699,6.11662407,1596.3,1595.6,0.84786241]
[1674049743873,3.0,1596.1,1595.5,0.4703]
[1674049744085,0.066,1596.2,1595.5,3.74055407]
[1674049744304,3.79459198,1596.4,1595.5,0.4703]
[1674049744305,6.11662407,1596.1,1595.5,0.4703]
[1674049744529,3.11662407,1596.0,1595.3,12.53340021]
[1674049744758,6.11662407,1595.9,1595.3,12.53140021]
[1674049744983,6.18262407,1595.9,1595.3,2.45820021]
[1674049745196,3.11662407,1595.8,1595.3,2.39420021]
[1674049745541,3.0,1595.5,1595.3,2.39420021]
[1674049745878,0.78186241,1595.7,1595.3,2.39420021]
[1674049745879,0.37766241,1595.7,1595.3,2.39420021]
[1674049746142,3.0,1595.6,1595.3,2.39420021]
[1674049746298,3.11662407,1595.5,1595.3,2.39420021]
[1674049746507,3.11662407,1595.4,1595.3,2.39420021]
[1674049746719,3.42828648,1595.4,1595.3,2.39420021]
[1674049747154,0.31166241,1595.4,1595.3,2.39420021]
[1674049747392,3.11662407,1595.4,1595.3,2.39420021]
[1674049747614,6.7533658,1595.4,1595.3,2.39420021]
[1674049747836,6.7533658,1595.4,1595.0,0.066]
[1674049747837,8.0493658,1595.4,1595.0,0.066]
[1674049748136,3.81692407,1595.3,1594.6,13.8772]
[1674049748344,3.81692407,1595.3,1594.6,0.066]
[1674049748345,3.0,1594.9,1594.6,0.066]
[1674049748566,3.11662407,1594.8,1594.5,0.02646868]
[1674049749080,3.0,1594.8,1594.5,0.02646868]
[1674049749345,3.11662407,1594.8,1594.5,0.02646868]
[1674049750089,0.366,1594.9,1594.5,0.02646868]
[1674049750317,3.0,1594.8,1594.3,1.59816257]
[1674049750504,6.11662407,1594.8,1594.4,1.08897034]
[1674049750721,6.18262407,1594.8,1594.2,14.71224084]
[1674049750966,6.18262407,1594.8,1594.3,1.08897567]
[1674049751414,0.066,1594.8,1594.3,1.08897567]
[1674049751562,5.1534,1595.1,1594.4,0.10889757]
[1674049751774,3.18262407,1595.1,1594.4,0.75147044]
[1674049752019,0.066,1595.2,1594.5,4.75288058]
[1674049752240,1.633,1595.4,1594.6,5.84175341]
[1674049752425,4.693,1595.6,1594.7,5.2054969]
[1674049752426,4.699,1595.6,1594.7,5.2054969]
[1674049752613,2.00466241,1595.7,1594.8,5.36831093]
[1674049752614,2.01066241,1595.7,1594.8,5.36831093]
[1674049752825,2.01066241,1595.7,1594.9,4.20518837]
[1674049752826,1.633,1595.7,1594.9,4.20518837]
[1674049753149,4.711,1595.8,1595.0,4.2050537]
[1674049753150,1.711,1595.8,1595.0,4.2050537]
[1674049753510,1.711,1595.9,1595.1,5.2050537]
[1674049753718,4.661,1596.0,1595.1,5.2050537]
[1674049753719,4.727,1596.0,1595.1,3.18062407]
[1674049753874,3.0,1596.0,1595.2,0.4703]
[1674049754088,3.0,1595.6,1595.0,0.4704]
[1674049754334,0.3,1595.9,1594.8,14.38354969]
[1674049754335,3.0,1595.4,1594.8,14.38354969]
[1674049754504,3.0,1595.4,1594.8,13.863]
[1674049754718,0.066,1595.6,1594.8,13.863]
[1674049754719,3.0,1595.1,1594.8,13.863]
[1674049755399,6.11662407,1595.1,1594.8,13.863]
[1674049755622,3.0,1594.9,1594.8,0.066]
[1674049755831,1.8385972,1594.9,1594.5,1.669]
[1674049755981,1.8385972,1594.9,1594.4,17.25695651]
[1674049755982,1.8385972,1594.9,1594.4,15.71995651]
[1674049756189,1.8385972,1594.9,1594.5,1.0888205]
[1674049756515,2.02245692,1594.9,1594.5,1.0888205]
[1674049756726,2.02245692,1594.9,1594.3,0.70857287]
[1674049756977,1.8385972,1594.7,1594.2,0.02748433]
[1674049757194,4.95522127,1594.7,1594.2,0.02748433]
[1674049757387,0.49552213,1594.6,1594.2,0.02748433]
[1674049757595,3.18262407,1594.7,1594.2,1.11645329]
[1674049757804,4.95522127,1594.7,1594.3,1.08896532]
[1674049758029,3.11662407,1594.6,1594.2,0.02748433]
[1674049758221,0.066,1594.7,1594.2,3.1441084]
[1674049758463,3.59445692,1594.9,1594.3,1.08897048]
[1674049758464,2.08845692,1594.9,1594.3,1.08897048]
[1674049758694,1.8385972,1594.6,1594.3,1.08897048]
[1674049759082,4.95522127,1594.6,1594.2,0.02748433]
[1674049759605,1.8385972,1594.4,1594.1,0.95840925]
[1674049760232,3.11662407,1594.3,1594.1,0.95840925]
[1674049760449,1.9045972,1594.4,1594.1,0.95840925]
[1674049760721,2.02905692,1594.4,1594.1,0.95840925]
[1674049761279,3.11662407,1594.3,1594.1,0.95840925]
[1674049761620,1.8385972,1594.2,1594.1,0.95840925]
[1674049761835,4.95522127,1594.2,1594.0,1.69297853]
[1674049762020,1.8385972,1594.2,1594.0,1.69297853]
[1674049762230,0.19045972,1594.4,1594.0,1.69297853]
[1674049762231,0.066,1594.4,1594.2,1.74268081]
[1674049762440,3.4135972,1594.5,1594.2,1.74268081]
[1674049762692,1.8385972,1594.5,1594.2,1.74268081]
[1674049762909,0.27484569,1594.8,1594.2,1.74268081]
[1674049763076,3.11662407,1594.7,1594.2,1.74268081]
[1674049763290,2.15025961,1594.6,1594.2,1.74268081]
[1674049763645,3.11662407,1594.5,1594.2,1.74268081]
[1674049763952,2.15025961,1594.6,1594.2,1.74268081]
[1674049764108,3.11662407,1594.5,1594.2,1.74268081]
[1674049764320,2.15025961,1594.6,1594.2,1.74268081]
[1674049764321,2.21625961,1594.6,1594.2,1.74268081]
[1674049764531,1.8385972,1594.6,1594.2,1.74268081]
[1674049764797,4.95522127,1594.6,1594.2,1.74268081]
[1674049765217,3.11662407,1594.5,1594.2,1.74268081]
[1674049765378,1.8385972,1594.3,1594.2,1.74268081]
[1674049765587,4.95522127,1594.3,1594.2,1.74268081]
[1674049765793,5.4573434,1594.3,1594.2,1.74268081]
[1674049766050,5.5233434,1594.3,1594.2,1.74268081]
[1674049766501,1.0,1594.2,1594.0,1.69297853]
[1674049766637,12.1763434,1594.3,1594.0,1.69297853]
[1674049766638,4.95522127,1594.1,1594.0,1.69297853]
[1674049767011,0.066,1594.2,1594.0,1.69297853]
[1674049767216,0.5366,1594.5,1594.0,1.69297853]
[1674049767367,3.32798407,1594.5,1594.0,1.69297853]
[1674049767575,1.8385972,1594.4,1594.0,1.69297853]
[1674049767790,1.9045972,1594.7,1594.1,3.11662407]
[1674049768047,0.066,1594.8,1594.2,3.11662407]
[1674049768223,1.574,1595.0,1594.3,4.20551541]
[1674049768448,3.4895972,1595.2,1594.3,8.08722407]
[1674049768665,1.8385972,1595.2,1594.4,3.92534648]
[1674049768847,1.8385972,1595.2,1594.5,4.11662407]
[1674049769073,1.8385972,1595.2,1594.6,3.11662407]
[1674049769254,2.13707693,1595.5,1594.6,3.11662407]
[1674049769469,2.07107693,1595.5,1594.7,0.4705]
[1674049769695,0.20710769,1595.4,1594.7,0.82921241]
[1674049770140,1.8385972,1595.3,1594.7,0.4705]
[1674049770521,1.8385972,1595.3,1594.6,13.5522]
[1674049770777,4.95522127,1595.3,1594.6,13.5522]
[1674049771316,0.002,1595.3,1594.6,16.66682407]
[1674049771527,0.23247973,1595.5,1594.7,6.11662407]
[1674049771687,1.8385972,1595.4,1594.8,0.61166241]
[1674049771885,3.4151038,1595.5,1594.8,1.08216241]
[1674049772102,3.11662407,1595.4,1594.8,0.4705]
[1674049772468,4.95522127,1595.4,1594.8,0.4705]
[1674049772627,1.8385972,1595.4,1594.8,0.4705]
[1674049772841,4.95522127,1595.4,1594.7,1.0]
[1674049773472,3.11662407,1595.4,1594.7,1.0]
[1674049773682,3.45813445,1595.4,1594.7,2.45522]
[1674049774116,0.29847973,1595.5,1594.7,8.57184407]
[1674049774330,0.23247973,1595.5,1594.8,3.11662407]
[1674049774640,0.23247973,1595.5,1594.9,3.11662407]
[1674049775253,0.23247973,1595.5,1594.8,0.5365]
[1674049775490,3.11662407,1595.4,1594.7,3.066]
[1674049775690,3.11662407,1595.3,1594.6,13.0817]
[1674049776013,1.8385972,1595.3,1594.7,1.0]
[1674049776559,0.29847973,1595.5,1594.8,3.58712407]
[1674049776725,0.29847973,1595.5,1595.3,1.16121214]
[1674049776726,0.23247973,1595.5,1595.3,1.16121214]
[1674049778295,4.95522127,1595.4,1595.0,0.066]
[1674049778509,0.49552213,1595.3,1594.7,1.571]
[1674049778733,0.49552213,1595.3,1594.7,2.571]
[1674049779113,0.29847973,1595.5,1594.8,4.11662407]
[1674049779248,0.23247973,1595.5,1594.8,4.11662407]
[1674049779459,1.8385972,1595.4,1594.8,1.0]
[1674049780033,0.29847973,1595.5,1595.0,1.0]
[1674049780244,0.29847973,1595.5,1595.1,3.11662407]
[1674049780245,0.23247973,1595.5,1595.1,3.11662407]
[1674049780464,0.23247973,1595.5,1595.2,3.42828648]
[1674049780779,0.23247973,1595.5,1595.3,3.11662407]
[1674049780926,0.23247973,1595.5,1595.4,3.11662407]
[1674049781135,0.23247973,1595.5,1595.3,0.5363]
[1674049781406,7.973e-05,1595.5,1595.4,4.11662407]
[1674049781569,7.973e-05,1595.5,1595.4,3.11662407]
[1674049782858,7.973e-05,1595.5,1595.3,0.066]
[1674049783031,7.973e-05,1595.5,1595.2,13.3526]
[1674049783659,7.973e-05,1595.5,1595.2,16.46922407]
[1674049784288,7.973e-05,1595.5,1595.3,3.11662407]
[1674049784504,7.973e-05,1595.5,1595.2,13.3546]
[1674049784753,7.973e-05,1595.5,1595.2,13.3526]
[1674049785078,7.973e-05,1595.5,1595.3,3.11662407]
[1674049785290,7.973e-05,1595.5,1595.4,3.42828648]
[1674049785504,1.78218361,1595.8,1595.5,1.00192027]
[1674049785717,0.21718361,1595.8,1595.6,3.11662407]
[1674049785866,0.21718361,1595.8,1595.7,3.11662407]
[1674049786077,0.21718361,1595.8,1595.7,6.11662407]
[1674049786342,0.20718361,1595.8,1595.7,6.79888648]
[1674049787824,0.20718361,1595.8,1595.7,7.79888648]
[1674049788689,0.20718361,1595.8,1595.7,6.18062407]
[1674049788903,0.20718361,1595.8,1595.7,3.064]
[1674049789111,0.20718361,1595.8,1595.6,1.4722]
[1674049789112,0.20718361,1595.8,1595.6,3.066]
[1674049789282,0.20718361,1595.8,1595.5,4.06792027]
[1674049789498,0.20718361,1595.8,1595.5,0.00192027]
[1674049791225,0.41176169,1595.8,1595.5,0.00192027]
[1674049791798,1.8385972,1595.7,1595.5,0.00192027]
[1674049793112,0.41176169,1595.8,1595.5,0.00192027]
[1674049793305,2.03578081,1595.8,1595.5,0.00192027]
[1674049793680,0.20718361,1595.8,1595.5,0.00192027]
[1674049793894,1.8285972,1595.6,1595.5,0.00192027]
[1674049795008,5.581963,1595.6,1594.9,14.205]
[1674049795156,5.581963,1595.6,1594.9,0.066]
[1674049795157,3.11662407,1595.5,1594.9,0.066]
[1674049795370,1.8285972,1595.0,1594.6,1.635]
[1674049795634,2.84300134,1595.4,1594.5,15.0105]
[1674049795847,2.84300134,1595.4,1594.5,13.4415]
[1674049795848,1.8285972,1595.1,1594.5,13.4415]
[1674049795998,1.8285972,1595.1,1594.6,1.0]
[1674049796572,0.066,1595.3,1594.6,1.0]
[1674049796811,3.5135972,1595.4,1595.1,1.16134896]
[1674049797106,1.8285972,1595.4,1595.1,1.16134896]
[1674049797674,1.8285972,1595.2,1595.1,1.16134896]
[1674049800103,0.5363,1595.5,1595.1,1.16134896]
[1674049800464,1.8285972,1595.3,1595.1,1.16134896]
[1674049801511,0.066,1595.6,1595.1,4.27797303]
[1674049801728,2.97912534,1595.8,1595.2,3.11662407]
[1674049801729,1.8285972,1595.5,1595.2,3.11662407]
[1674049801897,1.8285972,1595.5,1595.3,1.0]
[1674049802309,1.8285972,1595.5,1595.2,3.18062407]
[1674049802475,1.8285972,1595.5,1595.2,3.11662407]
[1674049802851,1.8285972,1595.5,1595.2,3.55102137]
[1674049803582,1.8285972,1595.5,1595.3,1.0]
[1674049804014,1.8285972,1595.5,1595.2,3.61702137]
[1674049804223,1.8285972,1595.5,1595.1,1.22734896]
[1674049804465,1.8285972,1595.5,1595.1,1.16134896]
[1674049804680,1.8285972,1595.5,1595.2,3.11662407]
[1674049804895,1.8285972,1595.5,1595.3,3.11662407]
[1674049805213,0.27318361,1595.8,1595.4,3.11662407]
[1674049805385,0.20718361,1595.8,1595.4,3.11662407]
[1674049805804,3.52738576,1595.8,1595.2,0.066]
[1674049806033,1.8285972,1595.6,1595.1,5.89334896]
[1674049806233,1.8285972,1595.6,1595.1,2.89334896]
[1674049806558,1.8285972,1595.6,1595.1,1.16134896]
[1674049806754,1.8285972,1595.6,1595.1,4.27797303]
[1674049806961,0.47676169,1595.8,1595.2,3.54442137]
[1674049807177,1.8285972,1595.5,1595.2,3.54442137]
[1674049807400,1.8285972,1595.5,1595.1,1.22734896]
[1674049807573,1.8285972,1595.5,1595.1,1.16134896]
[1674049808779,0.066,1595.7,1595.2,2.08848671]
[1674049808780,1.8945972,1595.7,1595.2,2.08848671]
[1674049809096,1.8285972,1595.7,1595.3,3.11662407]
[1674049809254,1.8285972,1595.7,1595.2,0.066]
[1674049809255,0.22393589,1595.7,1595.2,0.066]
[1674049809471,2.03578081,1595.8,1595.1,2.80392183]
[1674049809673,1.8285972,1595.5,1595.2,1.08848951]
[1674049809923,3.76178081,1595.8,1595.2,1.08848951]
[1674049810170,1.8285972,1595.6,1595.2,1.08848951]
[1674049810379,1.8285972,1595.6,1595.2,2.08848951]
[1674049810666,1.8285972,1595.6,1595.1,5.9865459]
[1674049810877,1.8285972,1595.6,1595.2,2.08851111]
[1674049811119,1.8285972,1595.6,1595.2,1.0]
[1674049811309,2.01145692,1595.6,1595.1,2.86992183]
[1674049811501,2.01145692,1595.6,1595.1,1.16134896]
[1674049812772,1.8285972,1595.5,1595.1,1.16134896]
[1674049813424,0.18285972,1595.6,1595.1,1.16134896]
[1674049813636,1.8285972,1595.3,1595.1,1.16134896]
[1674049814020,1.8285972,1595.5,1595.2,3.11662407]
[1674049814277,2.10178081,1595.8,1595.3,4.20506671]
[1674049814500,2.10178081,1595.8,1595.4,3.11662407]
[1674049814501,0.20718361,1595.8,1595.4,3.11662407]
[1674049814665,1.8285972,1595.6,1595.4,3.11662407]
[1674049815820,0.20718361,1595.8,1595.4,3.11662407]
[1674049815821,2.03578081,1595.8,1595.4,3.43488648]
[1674049816057,2.03578081,1595.8,1595.5,1.08832189]
[1674049816383,2.03578081,1595.8,1595.4,3.50088648]
[1674049816600,2.03578081,1595.8,1595.4,3.43488648]
[1674049816910,2.03578081,1595.8,1595.4,3.11662407]
[1674049817754,1.95857081,1595.8,1595.4,3.11662407]
[1674049818574,5.71193661,1595.8,1595.3,0.066]
[1674049818786,5.71193661,1595.8,1595.1,15.44952183]
[1674049818787,1.8285972,1595.5,1595.1,15.44952183]
[1674049819121,1.8285972,1595.5,1595.2,1.08851112]
[1674049819478,1.8285972,1595.5,1595.3,1.0]
[1674049819914,1.8285972,1595.7,1595.5,1.16104323]
[1674049820372,0.12997361,1595.8,1595.5,1.16104323]
[1674049820967,1.8285972,1595.7,1595.5,1.16104323]
[1674049821177,2.02445428,1595.7,1595.5,1.16104323]
[1674049822060,1.8285972,1595.7,1595.5,1.16104323]
[1674049824757,0.12997361,1595.8,1595.6,3.11662407]
[1674049825429,0.12997361,1595.8,1595.5,1.22704323]
[1674049825573,1.95857081,1595.8,1595.5,4.2776673]
[1674049826264,0.12997361,1595.8,1595.6,3.11662407]
[1674049826481,0.12997361,1595.8,1595.6,3.5443908]
[1674049827006,0.12997361,1595.8,1595.6,0.42776673]
[1674049827154,0.12997361,1595.8,1595.5,1.16104323]
[1674049827368,0.12997361,1595.8,1595.5,4.2776673]
[1674049827686,0.12997361,1595.8,1595.5,5.2776673]
[1674049827890,0.12997361,1595.8,1595.5,4.3416673]
[1674049828139,0.12997361,1595.8,1595.6,3.11662407]
[1674049828334,0.12997361,1595.8,1595.6,3.5443908]
[1674049829311,0.12997361,1595.8,1595.6,3.11662407]
[1674049829465,0.12997361,1595.8,1595.5,1.22704323]
[1674049829675,0.12997361,1595.8,1595.5,1.16104323]
[1674049830107,1.8285972,1595.7,1595.5,1.16104323]
[1674049830683,4.94522127,1595.7,1595.5,1.16104323]
[1674049830839,0.49452213,1595.6,1595.5,1.16104323]
[1674049831054,4.24788793,1595.6,1595.1,1.22534896]
[1674049831301,1.13126386,1595.6,1595.1,1.16134896]
[1674049831509,1.8285972,1595.2,1595.1,1.16134896]
[1674049832565,1.8285972,1595.4,1595.1,5.3665578]
[1674049832738,1.8285972,1595.4,1595.1,4.34197303]
[1674049833049,1.8285972,1595.4,1595.1,4.27797303]
[1674049833906,2.39050065,1595.7,1595.1,1.16134896]
[1674049834044,1.8285972,1595.2,1595.1,1.16134896]
[1674049835306,1.8285972,1595.2,1595.1,2.24995818]
[1674049835525,1.8285972,1595.3,1595.1,4.27797303]
[1674049836269,1.8285972,1595.3,1595.1,1.16134896]
[1674049837465,1.8285972,1595.3,1595.2,1.08855673]
[1674049837619,1.8285972,1595.3,1595.2,1.08852831]
[1674049838291,1.8285972,1595.3,1595.2,2.08852831]
[1674049838501,1.8945972,1595.7,1595.2,6.23697026]
[1674049838736,1.8285972,1595.7,1595.3,4.86118408]
[1674049838877,0.12997361,1595.8,1595.4,1.08852831]
[1674049839087,1.8285972,1595.6,1595.3,0.066]
[1674049839424,1.8285972,1595.6,1595.3,2.05495358]
[1674049839649,1.8285972,1595.6,1595.2,1.11127671]
[1674049840019,1.8285972,1595.6,1595.3,1.08850185]
[1674049840134,1.8285972,1595.6,1595.2,0.6560317]
[1674049840346,1.8285972,1595.6,1595.2,1.7445452]
[1674049840557,1.8285972,1595.6,1595.3,3.11662407]
[1674049840838,1.8285972,1595.6,1595.4,1.08839608]
[1674049840839,0.66764138,1595.6,1595.4,1.08839608]
[1674049840977,0.66764138,1595.6,1595.5,0.74583961]
[1674049841190,0.12997361,1595.8,1595.5,4.9507509]
[1674049841396,0.12997361,1595.8,1595.6,8.33114299]
[1674049841673,0.12997361,1595.8,1595.7,4.20491129]
[1674049841859,0.12997361,1595.8,1595.7,7.20491129]
[1674049842028,0.12997361,1595.8,1595.7,0.064]
[1674049842248,0.12997361,1595.8,1595.7,4.10724407]
[1674049842511,0.12997361,1595.8,1595.7,3.47024407]
[1674049842697,0.12997361,1595.8,1595.6,0.5362]
[1674049842870,0.12997361,1595.8,1595.6,0.4702]
[1674049843096,0.12997361,1595.8,1595.6,3.58682407]
[1674049843868,0.12997361,1595.8,1595.7,1.0]
[1674049844102,0.12997361,1595.8,1595.7,4.0]
[1674049844234,0.12997361,1595.8,1595.7,4.76528241]
[1674049844978,0.12997361,1595.8,1595.7,7.88190648]
[1674049845204,0.12997361,1595.8,1595.7,7.94590648]
[1674049845740,0.12997361,1595.8,1595.7,6.94590648]
[1674049847392,0.12997361,1595.8,1595.7,3.82928241]
[1674049847629,0.12997361,1595.8,1595.7,3.637]
[1674049847846,0.12997361,1595.8,1595.7,3.0]
[1674049848048,0.12997361,1595.8,1595.6,0.066]
[1674049848257,0.12997361,1595.8,1595.4,10.064]
[1674049848523,0.12997361,1595.8,1595.4,13.18062407]
[1674049848692,0.12997361,1595.8,1595.4,16.15384544]
[1674049849347,0.66764138,1595.6,1595.4,0.064]
[1674049849628,0.66764138,1595.6,1595.4,3.11662407]
[1674049849853,0.66764138,1595.6,1595.3,14.3268]
[1674049850151,0.66764138,1595.6,1595.3,14.3248]
[1674049850381,0.73440552,1595.6,1595.3,14.3248]
[1674049850599,0.66764138,1595.6,1595.3,1.364]
[1674049850925,0.002,1595.7,1595.4,3.11662407]
[1674049851135,0.12997361,1595.8,1595.4,3.11662407]
[1674049851678,0.12997361,1595.8,1595.5,7.20496424]
[1674049851989,0.12997361,1595.8,1595.6,3.83712049]
[1674049852221,0.12997361,1595.8,1595.6,4.83712049]
[1674049852563,0.79761499,1595.8,1595.6,1.72049642]
[1674049852770,0.79761499,1595.8,1595.6,1.0]
[1674049852984,0.12997361,1595.8,1595.6,1.0]
[1674049853243,0.12997361,1595.8,1595.6,5.41662407]
[1674049853413,0.12997361,1595.8,1595.6,5.48062407]
[1674049853623,0.12997361,1595.8,1595.6,1.364]
[1674049853889,0.12997361,1595.8,1595.6,1.3]
[1674049855190,0.12997361,1595.8,1595.6,1.43]
[1674049855629,0.12997361,1595.8,1595.6,1.3]
[1674049857185,0.79761499,1595.8,1595.6,1.3]
[1674049858606,0.54711564,1596.0,1595.6,1.3]
[1674049858766,4.30048144,1596.0,1595.6,1.3]
[1674049858978,3.54667221,1595.9,1595.6,1.3]
[1674049859304,3.7533658,1595.8,1595.6,1.3]
[1674049859709,0.63674173,1595.8,1595.6,1.3]
[1674049859920,3.7533658,1595.8,1595.6,1.3]
[1674049860811,1.10694173,1595.8,1595.6,1.3]
[1674049861002,0.8944591,1595.8,1595.6,1.3]
[1674049861393,1.51028386,1596.1,1595.6,1.3]
[1674049861609,6.23954411,1596.0,1595.6,1.3]
[1674049861929,3.11662407,1595.9,1595.6,1.3]
[1674049862330,1.04018386,1596.0,1595.3,1.843079]
[1674049862542,1.29995934,1596.1,1595.4,3.11662407]
[1674049862543,2.2741432,1596.1,1595.4,3.11662407]
[1674049862823,2.2741432,1596.1,1595.4,3.73328648]
[1674049862824,0.22741432,1596.0,1595.4,3.73328648]
[1674049863126,0.22741432,1596.0,1595.4,4.73328648]
[1674049863294,0.97418386,1596.1,1595.4,4.73328648]
[1674049863754,1.25736747,1596.2,1595.5,2.08835245]
[1674049863910,5.2650178,1596.1,1595.5,1.0]
[1674049864246,0.066,1596.1,1595.5,1.0]
[1674049864459,0.28318361,1596.2,1595.5,4.74358272]
[1674049864656,0.21718361,1596.2,1595.5,4.74358272]
[1674049865076,0.21718361,1596.2,1595.6,4.20490395]
[1674049865299,0.21718361,1596.2,1595.7,4.20490395]